[Event "Szczawno Festival IM 2018"]
[Site "Szczawno"]
[Date "2018.12.16"]
[Round "3"]
[White "Fus, Jakub"]
[Black "Krzywda, Andrzej"]
[Result "0-1"]
[ECO "B10"]
[WhiteElo "2265"]
[BlackElo "2178"]
[Annotator "NA"]
[PlyCount "230"]
[EventDate "2018.12.14"]
[EventType "tourn"]
[EventCountry "POL"]
[SourceTitle "playchess.com"]
[Source "ChessBase"]
[SourceQuality "1"]
[TimeControl "40/5400+30:900+30"]

1. e4 {[%emt 0:00:00]} c6 {[%emt 0:00:00]} 2. Nc3 {[%emt 0:00:00]} d5 {[%emt 0:00:18]} 3. Nf3 {[%emt 0:00:15]} Nf6 {[%emt 0:00:54]} 4. e5 {[%emt 0:00:21]} Ne4 {[%emt 0:00:41]} 5. Ne2 {[%emt 0:00:21]} Bg4 {[%emt 0:07:54]} 6. d3 {[%emt 0:06:31]} Nc5 {[%emt 0:03:20]} 7. Ng3 {[%emt 0:04:46]} e6 {[%emt 0:04:30]} 8. d4 {[%emt 0:03:24]} Ncd7 {[%emt 0:03:08]} 9. c3 {[%emt 0:09:04]} c5 {[%emt 0:01:00]} 10. Qb3 {[%emt 0:01:40]} Nc6 {[%emt 0:12:36]} 11. Qxb7 {[%emt 0:16:23]} Na5 {[%emt 0:02:22]} 12. Qa6 {[%emt 0:02:29]} Bxf3 {[%emt 0:00:19]} 13. gxf3 {[%emt 0:00:42]} cxd4 {[%emt 0:00:54]} 14. Bb5 {[%emt 0:06:29]} dxc3 {[%emt 0:08:20]} 15. O-O {[%emt 0:07:27]} Qb6 {[%emt 0:04:53]} 16. Qxb6 {[%emt 0:02:52]} axb6 {[%emt 0:00:18]} 17. bxc3 {[%emt 0:01:18]} Bc5 {[%emt 0:13:34]} 18. Be3 {[%emt 0:14:11]} Ke7 {[%emt 0:02:06]} 19. Bg5+ {[%emt 0:01:16]} f6 {[%emt 0:02:10]} 20. exf6+ {[%emt 0:00:29]} gxf6 {[%emt 0:01:42]} 21. Be3 {[%emt 0:03:44]} Ne5 {[%emt 0:01:25]} 22. f4 {[%emt 0:01:37]} Nec4 {[%emt 0:01:30]} 23. Bxc5+ {[%emt 0:01:33]} bxc5 {[%emt 0:00:06]} 24. Rfe1 {[%emt 0:01:18]} Nd6 {[%emt 0:03:24]} 25. Bf1 {[%emt 0:01:32]} f5 {[%emt 0:05:59]} 26. f3 {[%emt 0:01:53]} Kf6 {[%emt 0:00:46]} 27. Kf2 {[%emt 0:01:52]} Rhb8 {[%emt 0:00:56]} 28. Re2 {[%emt 0:00:50]} Nac4 {[%emt 0:00:48]} 29. Rae1 {[%emt 0:00:40]} Rb2 {[%emt 0:00:21]} 30. Kg1 {[%emt 0:01:40]} Rxe2 {[%emt 0:00:21]} 31. Rxe2 {[%emt 0:00:05]} Ra3 {[%emt 0:00:25]} 32. Nh5+ {[%emt 0:04:24]} Kg6 {[%emt 0:01:38]} 33. Ng3 {[%emt 0:03:03]} Kf7 {[%emt 0:00:05]} 34. Rc2 {[%emt 0:00:12]} Ne3 {[%emt 0:02:46]} 35. Rc1 {[%emt 0:00:57]} Rxa2 {[%emt 0:02:01]} 36. Be2 {[%emt 0:00:27]} Nec4 {[%emt 0:02:53]} 37. Kf1 {[%emt 0:01:28]} Rb2 {[%emt 0:02:10]} 38. Ke1 {[%emt 0:00:21]} Nd2 {[%emt 0:03:47]} 39. Bd1 {[%emt 0:01:03]} Nb3 {[%emt 0:01:15]} 40. Rc2 {[%emt 0:00:00]} Rxc2 {[%emt 0:00:00]} 41. Bxc2 {[%emt 0:02:54]} Na5 {[%emt 0:02:55]} 42. Bd3 {[%emt 0:01:25]} Nac4 {[%emt 0:00:38]} 43. Nf1 {[%emt 0:01:29]} Kf6 {[%emt 0:00:44]} 44. Ke2 {[%emt 0:01:02]} Na5 {[%emt 0:01:10]} 45. Nd2 {[%emt 0:01:15]} c4 {[%emt 0:01:29]} 46. Bc2 {[%emt 0:00:31]} Nb5 {[%emt 0:00:24]} 47. Nb1 {[%emt 0:00:11]} d4 {[%emt 0:05:49]} 48. Ba4 {[%emt 0:01:06]} Nxc3+ {[%emt 0:06:09]} 49. Nxc3 {[%emt 0:00:05]} dxc3 {[%emt 0:00:02]} 50. Kd1 {[%emt 0:00:40]} Nb3 {[%emt 0:00:46]} 51. Kc2 {[%emt 0:00:27]} Nd4+ {[%emt 0:00:13]} 52. Kxc3 {[%emt 0:00:06]} Nxf3 {[%emt 0:00:06]} 53. Kxc4 {[%emt 0:00:57]} Nxh2 {[%emt 0:00:08]} 54. Kd3 {[%emt 0:01:17]} Ng4 {[%emt 0:01:16]} 55. Ke2 {[%emt 0:00:07]} Ke7 {[%emt 0:00:44]} 56. Kf3 {[%emt 0:00:16]} Nf6 {[%emt 0:00:08]} 57. Bb5 {[%emt 0:01:52]} Kd6 {[%emt 0:00:09]} 58. Ba6 {[%emt 0:00:07]} Nd5 {[%emt 0:00:32]} 59. Be2 {[%emt 0:01:08]} Kc5 {[%emt 0:00:19]} 60. Ba6 {[%emt 0:00:25]} Ne7 {[%emt 0:02:36]} 61. Be2 {[%emt 0:00:40]} Kd4 {[%emt 0:00:24]} 62. Bb5 {[%emt 0:00:15]} Kd5 {[%emt 0:01:40]} 63. Be8 {[%emt 0:00:07]} Kd6 {[%emt 0:00:24]} 64. Bf7 {[%emt 0:01:33]} Nd5 {[%emt 0:00:20]} 65. Be8 {[%emt 0:00:27]} Nf6 {[%emt 0:00:15]} 66. Ba4 {[%emt 0:00:13]} Ne4 {[%emt 0:00:48]} 67. Be8 {[%emt 0:01:10]} Nc5 {[%emt 0:00:33]} 68. Ke3 {[%emt 0:01:10]} Ke7 {[%emt 0:00:50]} 69. Bh5 {[%emt 0:00:14]} Kf6 {[%emt 0:00:12]} 70. Kf2 {[%emt 0:01:42]} Ne4+ {[%emt 0:00:47]} 71. Kf3 {[%emt 0:00:45]} e5 {[%emt 0:01:19]} 72. fxe5+ {[%emt 0:00:55]} Kxe5 {[%emt 0:00:02]} 73. Be8 {[%emt 0:00:54]} Kf6 {[%emt 0:01:22]} 74. Kf4 {[%emt 0:00:38]} Nc5 {[%emt 0:00:08]} 75. Bc6 {[%emt 0:00:36]} Ne6+ {[%emt 0:00:07]} 76. Kg3 {[%emt 0:00:12]} Kg5 {[%emt 0:00:08]} 77. Ba8 {[%emt 0:00:27]} h5 {[%emt 0:00:12]} 78. Bb7 {[%emt 0:01:54]} h4+ {[%emt 0:01:08]} 79. Kg2 {[%emt 0:01:13]} Nf4+ {[%emt 0:00:18]} 80. Kf3 {[%emt 0:00:13]} Nd3 {[%emt 0:00:24]} 81. Kg2 {[%emt 0:00:40]} Nc5 {[%emt 0:00:48]} 82. Bc6 {[%emt 0:00:58]} Kg4 {[%emt 0:00:22]} 83. Bf3+ {[%emt 0:00:15]} Kf4 {[%emt 0:00:12]} 84. Bc6 {[%emt 0:01:08]} Ne4 {[%emt 0:00:21]} 85. Kh3 {[%emt 0:00:14]} Kg5 {[%emt 0:00:05]} 86. Bd5 {[%emt 0:00:23]} Nf2+ {[%emt 0:00:16]} 87. Kg2 {[%emt 0:00:07]} Ng4 {[%emt 0:00:06]} 88. Bc6 {[%emt 0:01:26]} Nf6 {[%emt 0:00:11]} 89. Kh3 {[%emt 0:00:11]} Nh5 {[%emt 0:00:10]} 90. Kg2 {[%emt 0:00:18]} Nf4+ {[%emt 0:00:10]} 91. Kf3 {[%emt 0:00:05]} Nd3 {[%emt 0:00:36]} 92. Kg2 {[%emt 0:01:01]} Ne5 {[%emt 0:01:20]} 93. Bb5 {[%emt 0:01:09]} Ng4 {[%emt 0:03:44]} 94. Bc6 {[%emt 0:00:37]} Nf6 {[%emt 0:00:31]} 95. Kh3 {[%emt 0:00:35]} Nh5 {[%emt 0:00:20]} 96. Kg2 {[%emt 0:00:04]} Nf4+ {[%emt 0:00:09]} 97. Kf3 {[%emt 0:00:06]} Ne6 {[%emt 0:00:24]} 98. Bb7 {[%emt 0:01:14]} Nd4+ {[%emt 0:00:58]} 99. Ke3 {[%emt 0:00:49]} Nc2+ {[%emt 0:00:59]} 100. Kf3 {[%emt 0:00:20]} Nb4 {[%emt 0:00:23]} 101. Kg2 {[%emt 0:00:11]} Kg4 {[%emt 0:00:34]} 102. Bf3+ {[%emt 0:00:10]} Kf4 {[%emt 0:00:05]} 103. Bb7 {[%emt 0:00:23]} Nd3 {[%emt 0:00:27]} 104. Kh3 {[%emt 0:01:00]} Nc5 {[%emt 0:00:28]} 105. Bd5 {[%emt 0:00:27]} Kg5 {[%emt 0:00:12]} 106. Bc6 {[%emt 0:00:25]} Nd3 {[%emt 0:01:14]} 107. Kg2 {[%emt 0:00:05]} Nf4+ {[%emt 0:01:01]} 108. Kf3 {[%emt 0:00:04]} Ne6 {[%emt 0:00:17]} 109. Kg2 {[%emt 0:03:06]} Kg4 {[%emt 0:00:34]} 110. Bf3+ {[%emt 0:00:29]} Kf4 {[%emt 0:00:08]} 111. Bd5 {[%emt 0:00:31]} Ng5 {[%emt 0:00:07]} 112. Kf2 {[%emt 0:00:42]} h3 {[%emt 0:00:11]} 113. Bc6 {[%emt 0:00:29]} Ne4+ {[%emt 0:00:10]} 114. Kg1 {[%emt 0:00:08]} Kg3 {[%emt 0:00:18]} 115. Kh1 {[%emt 0:00:11]} Nf2+ 0-1

[Event "Szczawno Festival IM 2018"]
[Site "Szczawno"]
[Date "2018.12.16"]
[Round "3"]
[White "Sliwicka, Alicja"]
[Black "Karpus, Michal"]
[Result "1-0"]
[ECO "C47"]
[WhiteElo "2236"]
[BlackElo "2355"]
[Annotator "NA"]
[PlyCount "59"]
[EventDate "2018.12.14"]
[EventType "tourn"]
[EventCountry "POL"]
[SourceTitle "playchess.com"]
[Source "ChessBase"]
[SourceQuality "1"]
[TimeControl "40/5400+30:900+30"]

1. e4 {[%emt 0:00:00]} e5 {[%emt 0:00:00]} 2. Nf3 {[%emt 0:00:00]} Nc6 {[%emt 0:00:00]} 3. Nc3 {[%emt 0:00:00]} Nf6 {[%emt 0:00:05]} 4. d4 {[%emt 0:00:00]} exd4 {[%emt 0:00:10]} 5. Nxd4 {[%emt 0:00:00]} Bb4 {[%emt 0:00:19]} 6. Nxc6 {[%emt 0:00:06]} bxc6 {[%emt 0:00:07]} 7. Bd3 {[%emt 0:00:03]} d5 {[%emt 0:03:41]} 8. exd5 {[%emt 0:00:10]} cxd5 {[%emt 0:00:10]} 9. O-O {[%emt 0:00:05]} O-O {[%emt 0:00:12]} 10. Bg5 {[%emt 0:00:04]} c6 {[%emt 0:00:33]} 11. Qf3 {[%emt 0:00:06]} Bd6 {[%emt 0:00:47]} 12. Rae1 {[%emt 0:00:08]} Rb8 {[%emt 0:01:07]} 13. Nd1 {[%emt 0:00:06]} Be6 {[%emt 0:03:58]} 14. b3 {[%emt 0:02:41]} h6 {[%emt 0:06:48]} 15. Bxf6 {[%emt 0:00:26]} Qxf6 {[%emt 0:00:07]} 16. Qxf6 {[%emt 0:00:07]} gxf6 {[%emt 0:00:06]} 17. Ne3 {[%emt 0:00:12]} a5 $14 {[%emt 0:01:15]} 18. Nf5 {[%emt 0:04:10]} Bxf5 {[%emt 0:01:50]} 19. Bxf5 {[%emt 0:00:11]} a4 {[%emt 0:00:59]} 20. Re3 {[%emt 0:14:22]} Ra8 {[%emt 0:09:32]} 21. Rd1 {[%emt 0:12:38]} axb3 {[%emt 0:03:43]} 22. axb3 {[%emt 0:00:49]} Rfd8 {[%emt 0:03:00]} 23. Kf1 {[%emt 0:02:20]} Be5 {[%emt 0:01:52]} 24. Rh3 {[%emt 0:09:52]} Kg7 {[%emt 0:01:45]} 25. Rh4 {[%emt 0:00:56]} Ra2 {[%emt 0:07:35]} 26. Rg4+ {[%emt 0:05:35]} Kf8 {[%emt 0:00:24]} 27. Bh7 {[%emt 0:05:58]} Rda8 {[%emt 0:04:37]} 28. Re1 {[%emt 0:05:21]} Ra1 {[%emt 0:05:45]} 29. Rg8+ {[%emt 0:00:26]} Ke7 {[%emt 0:00:10]} 30. Rxa8 {[%emt 0:00:07]} 1-0

[Event "Szczawno Festival IM 2018"]
[Site "Szczawno"]
[Date "2018.12.17"]
[Round "4"]
[White "Kislinsky, Alexey"]
[Black "Fus, Jakub"]
[Result "1/2-1/2"]
[ECO "C30"]
[WhiteElo "2425"]
[BlackElo "2265"]
[Annotator "NA RC"]
[PlyCount "148"]
[EventDate "2018.12.14"]
[EventType "tourn"]
[EventCountry "POL"]
[SourceTitle "playchess.com"]
[Source "ChessBase"]
[SourceQuality "1"]
[TimeControl "40/5400+30:900+30"]

1. e4 {[%emt 0:02:54]} e5 {[%emt 0:00:00]} 2. f4 {[%emt 0:00:33]} Bc5 {[%emt 0:00:14]} 3. Nc3 {[%emt 0:00:29]} d6 {[%emt 0:06:54]} 4. Nf3 {[%emt 0:00:32]} Nc6 {[%emt 0:01:05]} 5. Bb5 {[%emt 0:01:05]} Bg4 {[%emt 0:08:24] LiveBook: 7 Games} 6. Na4 {[%emt 0:00:53]} Bb6 {[%emt 0:06:39]} 7. Nxb6 {[%emt 0:01:51]} axb6 {[%emt 0:00:08]} 8. O-O {[%emt 0:00:36]} Nf6 {[%emt 0:02:13]} 9. d3 {[%emt 0:00:10]} O-O {[%emt 0:01:02]} 10. Bxc6 {[%emt 0:01:18]} bxc6 {[%emt 0:00:13]} 11. Qe1 $11 {[%emt 0:01:36]} exf4 {[%emt 0:08:27]} 12. Bxf4 {[%emt 0:00:09]} Nd7 {[%emt 0:01:34]} 13. Qg3 {[%emt 0:01:24]} Bxf3 {[%emt 0:03:27]} 14. Rxf3 {[%emt 0:00:09]} f6 {[%emt 0:00:42]} 15. a3 {[%emt 0:01:18]} Ne5 {[%emt 0:02:37]} 16. Rf2 {[%emt 0:00:19]} Qe7 {[%emt 0:00:15]} 17. Raf1 {[%emt 0:00:43]} Rf7 {[%emt 0:03:01]} 18. Bd2 {[%emt 0:01:20]} c5 {[%emt 0:02:19]} 19. Rf5 {[%emt 0:00:21]} Qe6 {[%emt 0:02:16]} 20. Qh4 {[%emt 0:02:55]} Raf8 {[%emt 0:01:40]} 21. h3 {[%emt 0:03:17]} Ng6 {[%emt 0:02:34]} 22. Qg3 {[%emt 0:05:16]} Ne7 {[%emt 0:05:14]} 23. R5f2 {[%emt 0:01:25]} Qe5 {[%emt 0:03:33]} 24. Qxe5 {[%emt 0:00:23]} fxe5 {[%emt 0:01:32]} 25. Rxf7 {[%emt 0:00:22]} Rxf7 {[%emt 0:00:05]} 26. Ra1 {[%emt 0:01:06]} Nc6 {[%emt 0:00:46]} 27. c3 {[%emt 0:02:12]} Rf8 {[%emt 0:08:35]} 28. b4 {[%emt 0:02:53]} cxb4 {[%emt 0:04:46]} 29. axb4 {[%emt 0:00:43]} Rc8 {[%emt 0:06:43]} 30. Kf2 {[%emt 0:01:26]} Kf7 {[%emt 0:00:37]} 31. b5 {[%emt 0:00:58]} Na5 {[%emt 0:00:54]} 32. Ra3 {[%emt 0:00:54]} Ke6 {[%emt 0:00:19]} 33. Ke2 {[%emt 0:00:07]} Kd7 {[%emt 0:00:48]} 34. Be3 {[%emt 0:02:09]} Rf8 {[%emt 0:02:03]} 35. Ra1 {[%emt 0:00:31]} Rf7 {[%emt 0:01:09]} 36. g4 {[%emt 0:02:03]} Rf8 {[%emt 0:01:13]} 37. h4 {[%emt 0:03:41]} Nb3 {[%emt 0:05:47]} 38. Ra7 {[%emt 0:04:18]} Nc5 {[%emt 0:00:36]} 39. h5 {[%emt 0:01:44]} Re8 {[%emt 0:02:10]} 40. Ra1 {[%emt 0:00:00]} Rf8 {[%emt 0:00:00]} 41. g5 {[%emt 0:13:11]} Ne6 {[%emt 0:01:44]} 42. h6 {[%emt 0:15:07]} g6 {[%emt 0:02:20]} 43. Ra7 {[%emt 0:04:40]} Nc5 {[%emt 0:08:38]} 44. Kd2 {[%emt 0:04:40]} Re8 {[%emt 0:00:32]} 45. Kc2 {[%emt 0:00:27]} Rf8 {[%emt 0:01:45]} 46. Bxc5 {[%emt 0:00:50]} dxc5 {[%emt 0:01:00]} 47. Kb3 {[%emt 0:00:03]} Kd6 {[%emt 0:00:48]} 48. Kc4 {[%emt 0:00:06]} Re8 {[%emt 0:02:24]} 49. Ra1 {[%emt 0:00:27]} Rf8 {[%emt 0:02:42]} 50. Ra2 {[%emt 0:03:06]} Ke6 {[%emt 0:00:10]} 51. d4 {[%emt 0:11:44]} cxd4 {[%emt 0:01:45]} 52. cxd4 {[%emt 0:00:05]} Rf4 {[%emt 0:02:11]} 53. Kd3 {[%emt 0:02:07]} Rf3+ {[%emt 0:00:09]} 54. Ke2 {[%emt 0:00:15]} Rg3 {[%emt 0:00:04]} 55. Ra7 {[%emt 0:00:26]} Kd7 {[%emt 0:00:32]} 56. Ra8 {[%emt 0:01:23]} Rxg5 {[%emt 0:00:26]} 57. Rh8 {[%emt 0:00:03]} exd4 {[%emt 0:00:41]} 58. Rxh7+ {[%emt 0:00:04]} Kd6 {[%emt 0:00:13]} 59. Rg7 {[%emt 0:00:09]} Rh5 {[%emt 0:01:15]} 60. h7 {[%emt 0:03:06]} Rh3 {[%emt 0:00:18]} 61. Rxg6+ {[%emt 0:01:09]} Ke5 {[%emt 0:00:24]} 62. Rg7 {[%emt 0:00:13]} Kxe4 {[%emt 0:00:14]} 63. Re7+ {[%emt 0:00:05]} Kd5 {[%emt 0:00:27]} 64. Rxc7 {[%emt 0:00:07]} Ke4 {[%emt 0:00:04]} 65. Kf2 {[%emt 0:01:42]} Kd3 {[%emt 0:02:06]} 66. Kg2 {[%emt 0:01:24]} Rh6 {[%emt 0:00:16]} 67. Kf3 {[%emt 0:00:18]} Kd2 {[%emt 0:00:18]} 68. Ke4 {[%emt 0:04:48]} d3 {[%emt 0:00:12]} 69. Kf3 {[%emt 0:01:54]} Kd1 {[%emt 0:00:18]} 70. Ke3 {[%emt 0:02:17]} d2 {[%emt 0:00:10]} 71. Kf2 {[%emt 0:00:02]} Rf6+ {[%emt 0:01:18]} 72. Kg2 {[%emt 0:01:24]} Rg6+ {[%emt 0:00:45]} 73. Kf2 {[%emt 0:00:04]} Rf6+ {[%emt 0:00:03]} 74. Kg2 {[%emt 0:00:05]} Rg6+ {[%emt 0:02:19]} 1/2-1/2

[Event "Szczawno Festival IM 2018"]
[Site "Szczawno"]
[Date "2018.12.17"]
[Round "4"]
[White "Simantsev, Mikhail"]
[Black "Chylewski, Patryk"]
[Result "1/2-1/2"]
[ECO "E10"]
[WhiteElo "2404"]
[BlackElo "2268"]
[Annotator "NA"]
[PlyCount "126"]
[EventDate "2018.12.14"]
[EventType "tourn"]
[EventCountry "POL"]
[SourceTitle "playchess.com"]
[Source "ChessBase"]
[SourceQuality "1"]
[TimeControl "40/5400+30:900+30"]

1. d4 {[%emt 0:13:16]} Nf6 {[%emt 0:00:00]} 2. c4 {[%emt 0:00:02]} e6 {[%emt 0:00:00]} 3. Nf3 {[%emt 0:01:06]} a6 {[%emt 0:00:23]} 4. Nc3 {[%emt 0:02:31]} d5 {[%emt 0:00:06]} 5. cxd5 {[%emt 0:01:34]} exd5 {[%emt 0:00:06]} 6. Bg5 {[%emt 0:00:23]} Be6 {[%emt 0:00:15]} 7. e3 {[%emt 0:00:33]} Nbd7 {[%emt 0:00:09]} 8. Bd3 {[%emt 0:00:49]} Bd6 {[%emt 0:00:16]} 9. h3 {[%emt 0:02:53] LiveBook: 20 Games} c6 {[%emt 0:00:50]} 10. O-O {[%emt 0:06:43]} Qc7 {[%emt 0:01:42]} 11. Qd2 {[%emt 0:05:36]} O-O $14 {[%emt 0:06:50]} 12. a3 {[%emt 0:08:22]} h6 {[%emt 0:10:41]} 13. Bf4 {[%emt 0:01:52]} c5 {[%emt 0:03:10]} 14. Bxd6 {[%emt 0:05:13]} Qxd6 {[%emt 0:00:17]} 15. dxc5 {[%emt 0:00:01]} Nxc5 {[%emt 0:00:22]} 16. Bc2 {[%emt 0:03:22]} Rfd8 {[%emt 0:00:54]} 17. Rfd1 {[%emt 0:03:10]} Qb6 {[%emt 0:06:46]} 18. Na4 {[%emt 0:08:05]} Nxa4 {[%emt 0:03:50]} 19. Bxa4 {[%emt 0:00:02]} Ne4 {[%emt 0:13:40]} 20. Qd4 {[%emt 0:02:45]} Qxd4 {[%emt 0:01:36]} 21. Nxd4 {[%emt 0:00:10]} Rac8 {[%emt 0:02:55]} 22. Rac1 {[%emt 0:06:06]} Rxc1 {[%emt 0:04:03]} 23. Rxc1 {[%emt 0:02:59]} Rc8 {[%emt 0:00:14]} 24. Rd1 {[%emt 0:03:56]} Nc5 {[%emt 0:06:54]} 25. Bc2 {[%emt 0:00:10]} Kf8 {[%emt 0:03:22]} 26. Kf1 {[%emt 0:04:40]} Ke7 {[%emt 0:02:02]} 27. Ke2 {[%emt 0:00:50]} Nd7 {[%emt 0:03:48]} 28. Bb3 {[%emt 0:05:22]} Nc5 {[%emt 0:11:12]} 29. Ba2 {[%emt 0:02:02]} Na4 {[%emt 0:02:25]} 30. Rb1 {[%emt 0:01:37]} Rc7 {[%emt 0:02:40]} 31. Bb3 {[%emt 0:01:39]} Nb6 {[%emt 0:00:38]} 32. Kd2 {[%emt 0:02:08]} Rc8 {[%emt 0:01:02]} 33. h4 {[%emt 0:00:52]} Rc7 {[%emt 0:02:00]} 34. f3 {[%emt 0:00:27]} Nc4+ {[%emt 0:05:10]} 35. Bxc4 {[%emt 0:00:57]} Rxc4 {[%emt 0:00:23]} 36. Rc1 {[%emt 0:03:11]} Rxc1 {[%emt 0:01:57]} 37. Kxc1 {[%emt 0:00:01]} Kd6 {[%emt 0:00:31]} 38. Kd2 {[%emt 0:00:01]} Bd7 {[%emt 0:01:23]} 39. Kc3 {[%emt 0:00:19]} Ke5 {[%emt 0:03:15]} 40. Kd3 {[%emt 0:00:00]} b6 {[%emt 0:00:00]} 41. f4+ {[%emt 0:08:06]} Kd6 {[%emt 0:01:52]} 42. Nb3 {[%emt 0:02:56]} g6 {[%emt 0:03:47]} 43. Kd4 {[%emt 0:00:16]} h5 {[%emt 0:00:53]} 44. Nc1 {[%emt 0:01:44]} Bb5 {[%emt 0:04:19]} 45. Na2 {[%emt 0:00:38]} Bf1 {[%emt 0:05:37]} 46. g3 {[%emt 0:02:07]} Ke6 {[%emt 0:01:31]} 47. Nb4 {[%emt 0:02:08]} Kf5 {[%emt 0:01:00]} 48. Nc6 {[%emt 0:04:18]} Kg4 {[%emt 0:01:01]} 49. Ne5+ {[%emt 0:00:01]} Kxg3 {[%emt 0:00:07]} 50. Nxf7 {[%emt 0:00:01]} Kxh4 {[%emt 0:00:34]} 51. Ne5 {[%emt 0:00:01]} Kg3 {[%emt 0:00:34]} 52. Nxg6 {[%emt 0:00:01]} h4 {[%emt 0:01:06]} 53. Nxh4 {[%emt 0:00:05]} Kxh4 {[%emt 0:00:05]} 54. Kxd5 {[%emt 0:00:01]} Kh5 {[%emt 0:00:44]} 55. Kc6 {[%emt 0:00:39]} b5 {[%emt 0:00:34]} 56. b4 {[%emt 0:01:05]} Kg4 {[%emt 0:00:37]} 57. Kb6 {[%emt 0:00:23]} Kf3 {[%emt 0:00:26]} 58. f5 {[%emt 0:00:54]} Kxe3 {[%emt 0:00:02]} 59. f6 {[%emt 0:00:10]} Bc4 {[%emt 0:00:04]} 60. Kxa6 {[%emt 0:00:34]} Kd4 {[%emt 0:00:08]} 61. Kb6 {[%emt 0:02:39]} Kc3 {[%emt 0:00:56]} 62. Kc5 {[%emt 0:00:47]} Kb3 {[%emt 0:00:13]} 63. f7 {[%emt 0:00:27]} Bxf7 {[%emt 0:00:05]} 1/2-1/2

[Event "Szczawno Festival IM 2018"]
[Site "Szczawno"]
[Date "2018.12.17"]
[Round "4"]
[White "Sergeev, Vladimir"]
[Black "Pacan-Milej, Kosma"]
[Result "1/2-1/2"]
[ECO "A00"]
[WhiteElo "2402"]
[BlackElo "2334"]
[Annotator "NA"]
[PlyCount "73"]
[EventDate "2018.12.14"]
[EventType "tourn"]
[EventCountry "POL"]
[SourceTitle "playchess.com"]
[Source "ChessBase"]
[SourceQuality "1"]
[TimeControl "40/5400+30:900+30"]

1. g3 {[%emt 0:13:02]} d5 {[%emt 0:00:00]} 2. Bg2 {[%emt 0:00:21]} e5 {[%emt 0:00:12]} 3. d3 {[%emt 0:00:29]} c6 {[%emt 0:01:12]} 4. Nf3 {[%emt 0:00:04]} Bd6 {[%emt 0:00:58]} 5. O-O {[%emt 0:00:06]} Ne7 {[%emt 0:01:16]} 6. e4 {[%emt 0:00:21]} O-O {[%emt 0:02:18]} 7. Nc3 {[%emt 0:01:55] LiveBook: 11 Games} d4 {[%emt 0:02:34]} 8. Ne2 {[%emt 0:00:23]} c5 {[%emt 0:00:29]} 9. Nd2 {[%emt 0:02:14]} Nbc6 {[%emt 0:07:06]} 10. c4 {[%emt 0:03:26]} Nb4 $15 {[%emt 0:10:40]} 11. Nf3 {[%emt 0:12:41]} f6 {[%emt 0:09:44]} 12. Ne1 {[%emt 0:00:41]} Be6 {[%emt 0:00:50]} 13. f4 {[%emt 0:00:09]} Rb8 {[%emt 0:04:24]} 14. f5 {[%emt 0:00:50]} Bf7 {[%emt 0:00:41]} 15. g4 {[%emt 0:00:20]} b5 {[%emt 0:00:42]} 16. b3 {[%emt 0:00:28]} bxc4 {[%emt 0:02:09]} 17. dxc4 {[%emt 0:07:34]} Bc7 {[%emt 0:05:11]} 18. Rf3 {[%emt 0:06:21]} Nc8 {[%emt 0:12:58]} 19. Nd3 {[%emt 0:13:08]} Nxd3 {[%emt 0:04:25]} 20. Qxd3 {[%emt 0:00:10]} Nd6 {[%emt 0:04:58]} 21. Rg3 {[%emt 0:06:02]} h6 {[%emt 0:10:23]} 22. h4 {[%emt 0:00:14]} Re8 {[%emt 0:01:51]} 23. g5 {[%emt 0:00:42]} hxg5 {[%emt 0:00:55]} 24. hxg5 {[%emt 0:00:02]} Kf8 {[%emt 0:00:28]} 25. Rh3 {[%emt 0:05:16]} Bg8 {[%emt 0:03:30]} 26. Bf3 {[%emt 0:06:11]} Ke7 {[%emt 0:02:52]} 27. Ng3 {[%emt 0:00:37]} Kd7 {[%emt 0:01:17]} 28. Bh5 {[%emt 0:04:06]} Re7 {[%emt 0:02:52]} 29. Bg6 {[%emt 0:00:20]} Kc6 {[%emt 0:00:37]} 30. Nh5 {[%emt 0:01:23]} Rd7 {[%emt 0:00:20]} 31. gxf6 {[%emt 0:02:46]} gxf6 {[%emt 0:00:05]} 32. Bh6 {[%emt 0:00:19]} Nf7 {[%emt 0:03:04]} 33. Bg7 {[%emt 0:02:21]} Rd6 {[%emt 0:00:13]} 34. Rd1 {[%emt 0:04:24]} Rb6 {[%emt 0:01:39]} 35. Rg3 {[%emt 0:00:21]} Kb7 {[%emt 0:00:49]} 36. Kf2 {[%emt 0:04:31]} Qe7 {[%emt 0:00:25]} 37. Rdg1 {[%emt 0:00:21]} 1/2-1/2

[Event "Szczawno Festival IM 2018"]
[Site "Szczawno"]
[Date "2018.12.17"]
[Round "4"]
[White "Krzywda, Andrzej"]
[Black "Sliwicka, Alicja"]
[Result "0-1"]
[ECO "A53"]
[WhiteElo "2178"]
[BlackElo "2236"]
[Annotator "NA"]
[PlyCount "66"]
[EventDate "2018.12.14"]
[EventType "tourn"]
[EventCountry "POL"]
[SourceTitle "playchess.com"]
[Source "ChessBase"]
[SourceQuality "1"]
[TimeControl "40/5400+30:900+30"]

1. d4 {[%emt 0:00:00]} Nf6 {[%emt 0:00:00]} 2. c4 {[%emt 0:00:00]} d6 {[%emt 0:00:00]} 3. Nf3 {[%emt 0:01:43]} Nbd7 {[%emt 0:00:32]} 4. g3 {[%emt 0:01:00]} e5 {[%emt 0:00:17]} 5. Nc3 {[%emt 0:02:21]} Be7 {[%emt 0:00:32]} 6. Bg2 {[%emt 0:00:13]} O-O {[%emt 0:00:21]} 7. O-O {[%emt 0:00:13]} c6 {[%emt 0:00:38]} 8. Qc2 {[%emt 0:00:53]} Qc7 {[%emt 0:04:24]} 9. Rd1 {[%emt 0:01:42]} Re8 {[%emt 0:05:18]} 10. b3 {[%emt 0:01:12]} Bf8 $14 {[%emt 0:05:37] LiveBook: 40 Games} 11. Bb2 {[%emt 0:06:27]} e4 {[%emt 0:14:41]} 12. Ne1 {[%emt 0:06:38]} d5 {[%emt 0:03:27]} 13. cxd5 {[%emt 0:05:22]} cxd5 {[%emt 0:00:58]} 14. Nb5 {[%emt 0:04:29]} Qxc2 {[%emt 0:00:20]} 15. Nxc2 {[%emt 0:00:04]} Rd8 {[%emt 0:02:02]} 16. Ne3 {[%emt 0:01:07]} Nb6 {[%emt 0:01:44]} 17. a4 {[%emt 0:05:56]} Bd7 {[%emt 0:03:15]} 18. Nc3 {[%emt 0:11:01]} Bc6 {[%emt 0:03:35]} 19. a5 {[%emt 0:05:54]} Nc8 {[%emt 0:03:11]} 20. a6 {[%emt 0:03:23]} Rb8 {[%emt 0:06:17]} 21. f3 {[%emt 0:06:08]} bxa6 {[%emt 0:04:22]} 22. fxe4 {[%emt 0:09:00]} dxe4 {[%emt 0:00:30]} 23. d5 {[%emt 0:04:40]} Ba8 {[%emt 0:00:32]} 24. Nxe4 {[%emt 0:11:58]} Nxe4 {[%emt 0:00:29]} 25. Bxe4 {[%emt 0:00:19]} Re8 {[%emt 0:00:54]} 26. d6 {[%emt 0:02:22]} Rxe4 {[%emt 0:05:08]} 27. d7 {[%emt 0:00:22]} Nd6 {[%emt 0:00:08]} 28. Nf5 {[%emt 0:06:16]} Rxe2 {[%emt 0:11:00]} 29. Nxd6 {[%emt 0:01:19]} Rxb2 {[%emt 0:00:18]} 30. Rac1 {[%emt 0:01:15]} Rd8 {[%emt 0:01:29]} 31. Nf5 {[%emt 0:01:25]} Bb7 {[%emt 0:00:39]} 32. Ne7+ {[%emt 0:00:44]} Bxe7 {[%emt 0:00:23]} 33. Rc8 {[%emt 0:00:25]} Bxc8 {[%emt 0:00:37]} 0-1